Workbook

Sheet Fasi 1-5
B1: Fase 1 | C1: Piano Investimenti | D1: Importo | E1: Ammortamenti Annui
C2: Brevetti | D2: 500000 | E2: =+D2/20 -> 25000
C3: Impianti | D3: 1000000 | E3: =+D3/10 -> 100000
C4: Attrezzature | D4: 800000 | E4: =+D4/12 -> 66666.66667
C5: Totale | D5: =SUM(D2:D4) -> 2300000 | E5: =SUM(E2:E4) -> 191666.6667
D6: Rata | E6: Quota Capitale | F6: Interessi
C7: Finanziamento (7 anni, 5%) | D7: =+PMT(5%,7,D5) -> -397485.5824 | E7: =+D7-F7 -> -282485.5824 | F7: =+IPMT(5%,1,7,D5) -> -115000
B9: Fase 2 | C9: Costi Fissi Industriali | D9: Importo
C10: Costo del lavoro | D10: 200000
C11: Utenze | D11: 10000
C12: Manutenzioni | D12: 50000
C13: Assicurazioni | D13: 25000
C14: Consulenze | D14: 30000
C15: Totale | D15: =SUM(D10:D14) -> 315000
B17: Fase 3 | C17: Costi Variabili Unitari | D17: Importo | E17: Incidenza sul prezzo di vendita
C18: Ricavo per Metro Tessuto Greggio | D18: 3.5
C19: Costo del Filato | D19: 2.5 | E19: =+D19/D18 -> 0.7142857143
C20: Costo dell'energia | D20: 0.3 | E20: =+D20/D18 -> 0.08571428571
C21: Provvigioni | D21: 0.28 | E21: =+D21/D18 -> 0.08
C22: Imballaggi | D22: 0.1 | E22: =+D22/D18 -> 0.02857142857
C23: Tot. Costi Variabili | D23: =SUM(D19:D22) -> 3.18 | E23: =+D23/D18 -> 0.9085714286
C24: M.d.C. Unitario | D24: =+D18-D23 -> 0.32 | E24: =+D24/D18 -> 0.09142857143
B27: Fase 3b-3c | C27: Margine di Produzione | F27: Incidenza su magazzino M.P.
C28: Costo Industriale pieno per Metro T.G. | D28: 3.15 | F28: Incidenza su 100%
C29: =+C19 -> Costo del Filato | D29: =+D19 -> 2.5 | E29: =+D29/$D$28 -> 0.7936507937 | F29: =+E29/(E29+E31) -> 0.9615384615
C30: =+C20 -> Costo dell'energia | D30: =+D20 -> 0.3 | E30: =+D30/$D$28 -> 0.09523809524 | F30: 0
C31: =+C22 -> Imballaggi | D31: =+D22 -> 0.1 | E31: 0.03174603175 | F31: =+E31/(E31+E29) -> 0.03846153846
C32: =+C23 -> Tot. Costi Variabili | D32: =SUM(D29:D31) -> 2.9 | E32: =+D32/D28 -> 0.9206349206
C33: M.d.P. Unitario | D33: =+D28-D32 -> 0.25 | E33: =+D33/D28 -> 0.07936507937 | F33: =SUM(F29:F31) -> 1
B35: Ponderazione Margini per calcolo Valore della Produzione di Break Even | D35: PESI
C36: Peso Vendite | D36: 0.9269846792 | E36: =+(D46-D53)/D46 -> 0.9269846793 | F36: =+D36-E36 -> -3.683475747e-11
C37: Peso Delta Magazzino Prodotto Finito | D37: =100%-D36 -> 0.07301532077
C38: M.d.c. Ponderato | D38: =+D36*E24+E33*D37 -> 0.09054775169
B40: Fase 4 | C40: Costi Fissi Operativi | D40: =+D15 -> 315000
B41: Stima primo break even | C41: Finanziamento Piano Investimenti | D41: =-D7 -> 397485.5824
C42: Interessi Passivi a breve (Fase 7b) | D42: 152155.9124 | E42: =+'Fase 7b'!C27 -> 152155.9124 | F42: =+D42-E42 -> 0
B44: Uscite Finanziarie Fisse | C44: Somma Flussi in Uscita | D44: =SUM(D40:D43) -> 864641.4948
B46: Valore della Produzione | C46: Break Even Finanziario | D46: =+D44/D38 -> 9549011.198 | E46: =+"(Flussi in uscita/M.d.C.% = "&TEXT(D38,"0,00%")&")" -> (Flussi in uscita/M.d.C.% = 9,05%)
B48: Fase 5
B49: Stima CCNC Attivo | C49: Acquisti M.P. Giornalieri | D49: =+(D46/365)*(((E29+E31)*D37)+((E19+E22)*D36)) -> 19592.05434
C50: Magazzino Mat. Prima | D50: =+D49*E50 -> 881642.4451 | E50: 45 | F50: gg
C52: Costo del Venduto Giornaliero | D52: =+(D15+E5+((((E19+E20+E22)*D36)+((E29+E30+E31)*D37))*D46))/365 -> 23240.80384
C53: Magazzino P. Finito | D53: =+D52*E53 -> 697224.1153 | E53: 30 | F53: gg
C55: Fatturato Giornaliero | D55: =+(D46-D53)/270 -> 32784.3966 | E55: Fatturato/270
C56: Crediti V/Clienti | D56: =+D55*E56*(1+IVA!C2) -> 3599726.747 | E56: 90 | F56: gg
C58: Acquisti Giornalieri | D58: =+D49+(D12/365) -> 19729.04064
B59: Stima CCNC Passivo | C59: Debiti V/Fornitori | D59: =+D58*E59*(1+IVA!C2) -> 2166248.662 | E59: 90 | F59: gg
C61: CCNC | D61: =+D56+D50+D53-D59 -> 3012344.645

Sheet IVA
B1: Momento 0
B2: Aliquota Iva in vigore | C2: 0.22
B3: Iva su Investimenti | C3: =+'Fasi 1-5'!D5*C2 -> 506000 | D3: a Credito
C5: 1 | D5: 2 | E5: 3 | F5: 4 | G5: 5 | H5: 6 | I5: 7 | J5: 8 | K5: 9 | L5: 10 | M5: 11 | N5: 12
B6: Sviluppo Iva Mensile
B7: Credito | C7: =+D28+D30 -> 354824.7825 | D7: =+D28 -> 160863.4446 | E7: =+D7 -> 160863.4446 | F7: 160863.4446 | G7: 160863.4446 | H7: 160863.4446 | I7: 160863.4446 | J7: 160863.4446 | K7: 160863.4446 | L7: 160863.4446 | M7: 160863.4446 | N7: 160863.4446
B8: Debito | C8: 0 | D8: 0 | E8: 0 | F8: =+D14 -> 216377.0176 | G8: =+F8 -> 216377.0176 | H8: 216377.0176 | I8: 216377.0176 | J8: 216377.0176 | K8: 216377.0176 | L8: 216377.0176 | M8: 216377.0176 | N8: 216377.0176
B9: Saldo a Credito | C9: =+C3+C7-C8 -> 860824.7825 | D9: =+C9+D7-D8 -> 1021688.227 | E9: =+D9+E7-E8 -> 1182551.672 | F9: =+E9+F7-F8 -> 1127038.099 | G9: 1071524.526 | H9: 1016010.953 | I9: 960497.3795 | J9: 904983.8065 | K9: 849470.2335 | L9: 793956.6605 | M9: 738443.0875 | N9: 682929.5144
E10: Picco del credito Iva | H10: Picco del cap. circolante
C12: Fatturato | D12: =+'Fase 7 - 7c-d'!D3 -> 8851787.083
C13: Fatturato/9 | D13: =+D12/9 -> 983531.8981 | E13: (Le vendite partono in differita)
C14: =+"Fatturato/9*"&C2 -> Fatturato/9*0,22 | D14: =+D13*C2 -> 216377.0176
B16: Acquisti ad Iva Fissi | C16: Utenze | D16: =+'Fasi 1-5'!D11 -> 10000
C17: Manutenzioni | D17: =+'Fasi 1-5'!D12 -> 50000
C18: Consulenze | D18: =+'Fasi 1-5'!D14 -> 30000
B20: Acquisti ad Iva Variabili | C20: Costo del Filato | D20: =-'Fase 7 - 7c-d'!D7 -> 7723790.652
C21: Costo dell'energia | D21: =-'Fase 7 - 7c-d'!D8 -> 825126.9038
C22: Provvigioni | D22: =-'Fase 7 - 7c-d'!D9 -> 708142.9666
C23: Imballaggi | D23: =-'Fase 7 - 7c-d'!D10 -> 308951.6261
C24: Acquisti per magazzino M.P. | D24: =+'Fasi 1-5'!D50 -> 881642.4451 | E24: (Immediati)
C26: Totale (netto magazzino M.P.) | D26: =SUM(D16:D23)-D24 -> 8774369.703
C27: Totale/12 | D27: =+D26/12 -> 731197.4753
C28: =+"Totale/12*"&C2 -> Totale/12*0,22 | D28: =+D27*C2 -> 160863.4446
C30: Iva su Acquisto magazzino M.P. | D30: =+D24*C2 -> 193961.3379 | E30: (caricata su mese 1)

Sheet Fase 6
B1: Fase 6 | C1: Investimenti e Coperture al Momento 0
C3: Attivo Immobilizzato | D3: =SUM(D4:D6) -> 2300000 | F3: Posizione Finanziaria Netta | G3: =SUM(G4:G5) -> 5828355.598
C4: =+'Fasi 1-5'!C2 -> Brevetti | D4: =+'Fasi 1-5'!D2 -> 500000 | F4: Pos. Finanziaria Netta a M/L | G4: =+'Fasi 1-5'!D5 -> 2300000
C5: =+'Fasi 1-5'!C3 -> Impianti | D5: =+'Fasi 1-5'!D3 -> 1000000 | F5: Pos. Finanziaria Netta a Breve | G5: =+D15-G4-G13 -> 3528355.598
C6: =+'Fasi 1-5'!C4 -> Attrezzature | D6: =+'Fasi 1-5'!D4 -> 800000
C8: Capitale Circolante | D8: =SUM(D9:D13) -> 4028355.598 | F8: Posizione Tributaria Netta | G8: 0
C9: =+'Fasi 1-5'!C56 -> Crediti V/Clienti | D9: =+'Fasi 1-5'!D56 -> 3599726.747
C10: =+'Fasi 1-5'!C50 -> Magazzino Mat. Prima | D10: =+'Fasi 1-5'!D50 -> 881642.4451
C11: =+'Fasi 1-5'!C53 -> Magazzino P. Finito | D11: =+'Fasi 1-5'!D53 -> 697224.1153
C12: Credito Iva | D12: =+IVA!H9 -> 1016010.953 | F12: Mezzi Propri | G12: =+G13 -> 500000
C13: =+'Fasi 1-5'!C59 -> Debiti V/Fornitori | D13: =-'Fasi 1-5'!D59 -> -2166248.662 | F13: Equity | G13: 500000
C15: Totale Investimenti | D15: =+D3+D8 -> 6328355.598 | F15: Totale Coperture | G15: =+G5+G13+G4 -> 6328355.598

Sheet Fase 7 - 7c-d
B1: Fase 7a | C1: Conto Economico al Momento 1
C3: Fatturato | D3: =+'Fasi 1-5'!D46-'Fase 8'!D11 -> 8851787.083
C4: Variazione Magazzino P.F. | D4: =+'Fase 8'!D11 -> 697224.1153
C5: Valore della Produzione | D5: =+D3+D4 -> 9549011.198
C7: =+'Fasi 1-5'!C19 -> Costo del Filato | D7: =-D3*'Fasi 1-5'!E19-D4*'Fasi 1-5'!E29-D11*'Fasi 1-5'!F29 -> -7723790.652
C8: =+'Fasi 1-5'!C20 -> Costo dell'energia | D8: =-D3*'Fasi 1-5'!E20-D4*'Fasi 1-5'!E30 -> -825126.9038
C9: =+'Fasi 1-5'!C21 -> Provvigioni | D9: =-($D$5)*'Fasi 1-5'!E21*'Fasi 1-5'!D36 -> -708142.9666
C10: =+'Fasi 1-5'!C22 -> Imballaggi | D10: =-D3*'Fasi 1-5'!E22-'Fase 7 - 7c-d'!D4*'Fasi 1-5'!E31-D11*'Fasi 1-5'!F31 -> -308951.6261
C11: Variazione Magazzino M.P. | D11: ='Fase 8'!D10 -> 881642.4451
C12: Costi Variabili | D12: =SUM(D7:D11) -> -8684369.703
C13: =+'Fasi 1-5'!C10 -> Costo del lavoro | D13: =-'Fasi 1-5'!D10 -> -200000
C14: =+'Fasi 1-5'!C11 -> Utenze | D14: =-'Fasi 1-5'!D11 -> -10000
C15: =+'Fasi 1-5'!C12 -> Manutenzioni | D15: =-'Fasi 1-5'!D12 -> -50000
C16: =+'Fasi 1-5'!C13 -> Assicurazioni | D16: =-'Fasi 1-5'!D13 -> -25000
C17: =+'Fasi 1-5'!C14 -> Consulenze | D17: =-'Fasi 1-5'!D14 -> -30000
C18: Costi Fissi | D18: =SUM(D13:D17) -> -315000
C19: EBITDA/MOL | D19: =+D3+D12+D18+D4 -> 549641.4948
C20: Ammortamenti | D20: =-'Fasi 1-5'!E5 -> -191666.6667
C21: EBIT/Red.Operativo | D21: =+D19+D20 -> 357974.8282
C22: Interessi passivi a lungo | D22: =+'Fasi 1-5'!F7 -> -115000
B25: Fase 7b | C25: Interessi passivi a breve | D25: =-'Fase 7b'!C27 -> -152155.9124 | E25: 0.05 | F25: su PFN a Breve Iniziale
C26: Utile Ante Imposte | D26: =+D21+D22+D25 -> 90818.91579
B29: Fase 7c | C29: Imposte | D29: =-(G29*D26+G30*(+D26-D25-D22)) -> -35757.55809 | F29: IRES | G29: 0.24
C30: Utile Netto | D30: =+D26+D29 -> 55061.3577 | F30: IRAP | G30: 0.039

Sheet Fase 7b
B3: Proxy PFN Finale
A4: 1 | B4: PFN Iniziale | C4: 0
B6: Flussi di Cassa
B7: Mol | C7: =+'Fase 7 - 7c-d'!D19 -> 549641.4948
B8: CCNC Iniziale | C8: 0
B9: CCNC Finale | C9: =+'Fase 8'!D8 -> 3695274.16
B10: Delta CCNC | C10: =+C8-C9 -> -3695274.16
A11: A | B11: Cash Flow operativo | C11: =+C7+C10 -> -3145632.665
B12: Ammortamenti | C12: =+'Fase 7 - 7c-d'!D20 -> -191666.6667
B13: Investimenti Netti Iniziali | C13: 0
B14: Investimenti Netti Finali | C14: =+'Fasi 1-5'!D5-'Fasi 1-5'!E5 -> 2108333.333
B15: Delta Investimenti | C15: =+C14-C13 -> 2108333.333
A16: B | B16: Flusso per Investimenti | C16: =+C12-C15 -> -2300000
B17: Flusso per Debito a Medio Lungo | C17: =+'Fasi 1-5'!D7 -> -397485.5824
B18: Erogazioni a medio lungo | C18: =+'Fasi 1-5'!D5 -> 2300000
A19: C | B19: Flusso netto debito a M/L | C19: =+C17+C18 -> 1902514.418
A20: D | B20: Cash Flow Fiscale | C20: 0
A21: E | B21: Flusso Equity | C21: =+'Fase 6'!G13 -> 500000
A23: 2 = A+B+C+D+E | B23: Flussi in uscita | C23: =+C11+C16+C19+C20+C21 -> -3043118.247
A25: 1+2 | B25: PFN a Breve Finale pre Oneri Finanziari | C25: =+C4-C23 -> 3043118.247
B27: Oneri Finanziari | C27: =+AVERAGE(C25)*D27 -> 152155.9124 | D27: 0.05
B29: PFN a Breve Finale post Oneri Finanziari | C29: =+C25+C27 -> 3195274.16

Sheet Fase 8
B1: Fase 8 | C1: Investimenti e Coperture al Momento 1
C3: Attivo Immobilizzato | D3: =+SUM(D4:D6) -> 2108333.333 | F3: Posizione Finanziaria Netta | G3: =SUM(G4:G5) -> 5212788.577
C4: =+'Fase 6'!C4 -> Brevetti | D4: =+'Fasi 1-5'!D2-'Fasi 1-5'!E2 -> 475000 | F4: Pos. Finanziaria Netta a M/L | G4: =+'Fase 6'!G4+'Fasi 1-5'!E7 -> 2017514.418
C5: =+'Fase 6'!C5 -> Impianti | D5: =+'Fasi 1-5'!D3-'Fasi 1-5'!E3 -> 900000 | F5: Pos. Finanziaria Netta a Breve | G5: =+'Fase 7b'!C29 -> 3195274.16
C6: =+'Fase 6'!C6 -> Attrezzature | D6: =+'Fasi 1-5'!D4-'Fasi 1-5'!E4 -> 733333.3333
C8: =+'Fase 6'!C8 -> Capitale Circolante | D8: =SUM(D9:D13) -> 3695274.16 | F8: Posizione Tributaria Netta | G8: =-'Fase 7 - 7c-d'!D29 -> 35757.55809
C9: =+'Fase 6'!C9 -> Crediti V/Clienti | D9: =+'Fase 6'!D9 -> 3599726.747
C10: =+'Fase 6'!C10 -> Magazzino Mat. Prima | D10: =+'Fase 6'!D10 -> 881642.4451 | F10: Mezzi Propri | G10: =+G11+G12 -> 555061.3577
C11: =+'Fase 6'!C11 -> Magazzino P. Finito | D11: =+'Fase 6'!D11 -> 697224.1153 | F11: Equity | G11: 500000
C12: Credito Iva | D12: =+IVA!N9 -> 682929.5144 | F12: Utile dell'esercizio | G12: =+'Fase 7 - 7c-d'!D30 -> 55061.3577
C13: =+'Fase 6'!C13 -> Debiti V/Fornitori | D13: =+'Fase 6'!D13 -> -2166248.662
C14: Totale Investimenti | D14: =+D3+D8 -> 5803607.493 | F14: Totale Coperture | G14: =+G8+G10+G3 -> 5803607.493

Sheet Fase 9
B1: Fase 9 | C1: Rendiconto Finanziario (Determ. Cash Flow)
D2: Anno 1
C4: EBITDA/M.O.L. | D4: =+'Fase 7 - 7c-d'!D19 -> 549641.4948
C5: CCNC Iniziale | D5: 0
C6: CCNC Finale | D6: =+'Fase 8'!D8 -> 3695274.16
C7: Variazione Circolante | D7: =+D6-D5 -> 3695274.16
C9: CASH FLOW OPERATIVO | D9: =+D4-D7 -> -3145632.665
C11: Ammortamenti | D11: =+'Fase 7 - 7c-d'!D20 -> -191666.6667
C12: Investimenti Iniziali | D12: 0
C13: Investimenti Finali | D13: =+'Fase 8'!D3 -> 2108333.333
C14: Investimenti a patrimonio | D14: =+D13-D12 -> 2108333.333
C15: Flusso di Cassa per investimenti | D15: =+D14-D11 -> 2300000
C17: CASH FLOW DISPONIBILE | D17: =+D9-D15 -> -5445632.665
C19: Interessi Passivi netti | D19: =+'Fase 7 - 7c-d'!D22+'Fase 7 - 7c-d'!D25 -> -267155.9124
C20: PFN Iniziale | D20: 0
C21: PFN Finale | D21: =+'Fase 8'!G3 -> 5212788.577
C22: Variazione dell'indebitamento finanziario | D22: =+D21-D20 -> 5212788.577
C23: Cash Flow per il servizio del debito | D23: =+D22+D19 -> 4945632.665
C25: Cash Flow per la gestione straordinaria | D25: 0
C27: Imposte d'esercizio | D27: =+'Fase 7 - 7c-d'!D29 -> -35757.55809
C28: PTN Iniziale | D28: 0
C29: PTN Finale | D29: =+'Fase 8'!G8 -> 35757.55809
C30: Variazione debiti fiscali | D30: =+D29-D28 -> 35757.55809
C31: Cash Flow Fiscale | D31: =+D27+D30 -> 0
C33: Utile | D33: =+D4+D11+D19+D25+D27 -> 55061.3577
C34: Equity Iniziale | D34: 0
C35: Equity Finale | D35: =+D6+D13-D21-D29 -> 555061.3577
C36: Variazione dei mezzi propri | D36: =D35-D34 -> 555061.3577
C37: CASH FLOW DALLA PROPRIETA' | D37: =D36-D33 -> 500000

Sheet Fase 10
B2: Fase 10 | C2: MdC | D2: =+'Fasi 1-5'!D38 -> 0.09054775169
C3: Costi Fissi Operativi | D3: =+'Fasi 1-5'!D40 -> 315000
C4: Valore della Produzione | D4: =+'Fasi 1-5'!D46 -> 9549011.198
C5: Interessi Passivi | D5: =+'Fase 7 - 7c-d'!D22+'Fase 7 - 7c-d'!D25 -> -267155.9124
C6: PFN | D6: =+'Fase 8'!G3 -> 5212788.577
